bitfinex-derivatives/quotes_SOLF0:USTF0_20241216
["timestamp","ask_amount","ask_price","bid_price","bid_amount"]
[1734339333935,2.18,220.41,220.37,2.2696]
[1734339336429,2.2691,220.42,220.37,2.2696]
[1734339337139,2.18,220.43,220.38,9.80948071]
[1734339337341,2.18,220.43,220.35,9.80948071]
[1734339337342,2.18,220.47,220.36,9.80948071]
[1734339337643,2.18,220.47,220.37,2.2696]
[1734339338843,2.18,220.47,220.36,9.80948071]
[1734339339044,2.18,220.47,220.38,2.2696]
[1734339339347,2.269,220.44,220.38,2.2696]
[1734339339552,2.18,220.47,220.38,2.2696]
[1734339340451,2.2691,220.43,220.38,2.2696]
[1734339340746,2.18,220.47,220.36,9.80948071]
[1734339340944,2.2692,220.42,220.36,9.80948071]
[1734339341140,2.18,220.47,220.36,9.80948071]
[1734339342348,2.18,220.47,220.39,2.2694]
[1734339342349,2.269,220.43,220.39,2.2694]
[1734339342547,2.269,220.43,220.36,9.80948071]
[1734339343144,2.269,220.43,220.38,2.2695]
[1734339343650,2.18,220.47,220.35,9.80948071]
[1734339343947,2.2691,220.42,220.37,2.2696]
[1734339345046,2.18,220.42,220.34,1.5163]
[1734339345641,2.2697,220.37,220.34,1.5163]
[1734339345841,2.18,220.37,220.27,12.83968071]
[1734339346645,2.2701,220.33,220.28,2.2706]
[1734339347947,2.2701,220.33,220.28,2.2706]
[1734339348338,2.18,220.37,220.26,1.4507]
[1734339348339,2.18,220.32,220.26,1.4507]
[1734339349447,2.2704,220.31,220.26,1.4507]
[1734339349647,2.18,220.32,220.26,1.4507]
[1734339350045,2.2706,220.29,220.26,1.4507]
[1734339350846,2.2704,220.3,220.26,1.4507]
[1734339351148,2.18,220.33,220.26,1.4507]
[1734339351353,2.18,220.33,220.27,2.2707]
[1734339351354,4.4502,220.33,220.27,2.2707]
[1734339351753,2.18,220.33,220.27,2.2707]
[1734339352741,2.18,220.33,220.28,2.2706]
[1734339353346,2.18,220.33,220.26,1.4507]
[1734339353749,2.2704,220.31,220.26,3.7215]
[1734339353949,2.18,220.33,220.26,3.7215]
[1734339354152,2.18,220.33,220.26,1.4507]
[1734339354351,2.2703,220.31,220.26,1.4507]
[1734339354547,2.18,220.33,220.26,1.4507]
[1734339354847,2.2709,220.26,220.21,2.2713]
[1734339355749,2.2709,220.26,220.22,2.2712]
[1734339355959,2.2707,220.27,220.19,11.36118071]
[1734339356146,2.18,220.28,220.19,11.36118071]
[1734339356447,2.18,220.28,220.23,2.2711]
[1734339357544,4.4506,220.28,220.23,2.2711]
[1734339358051,4.4506,220.28,220.24,2.271]
[1734339358052,2.18,220.28,220.24,2.271]
[1734339358249,2.2705,220.3,220.21,2.18]
[1734339358447,2.18,220.32,220.22,11.37678071]
[1734339358648,2.14,220.32,220.22,11.37678071]
[1734339359159,2.14,220.33,220.22,11.37678071]
[1734339359854,2.14,220.33,220.29,2.2705]
[1734339360247,4.4101,220.33,220.22,11.37678071]
[1734339360454,4.4101,220.33,220.27,2.2706]
[1734339360657,2.14,220.33,220.22,11.37678071]
[1734339361357,2.2704,220.3,220.25,2.2708]
[1734339362251,11.94948071,220.33,220.22,1.5673]
[1734339362753,9.80948071,220.3,220.22,1.5673]
[1734339364559,2.2711,220.24,220.22,1.5673]
[1734339365655,2.2711,220.24,220.19,3.8232]
[1734339366350,2.2711,220.24,220.2,2.2714]
[1734339366851,2.2715,220.2,220.17,1.5047]
[1734339368957,2.2715,220.19,220.17,1.5047]
[1734339369457,2.14,220.21,220.13,2.2721]
[1734339369458,2.2716,220.18,220.13,2.2721]
[1734339370161,2.2717,220.17,220.12,2.2722]
[1734339370460,2.2717,220.17,220.11,1.5724]
[1734339370461,9.80948071,220.2,220.11,1.5724]
[1734339371261,2.2718,220.17,220.11,3.8447]
[1734339371758,9.80948071,220.2,220.11,1.5724]
[1734339371965,2.2721,220.14,220.11,1.5724]
[1734339372663,2.2721,220.14,220.05,12.82018071]
[1734339372966,2.2721,220.14,220.06,1.52]
[1734339373464,2.2721,220.14,220.08,2.2726]
[1734339374964,2.2721,220.13,220.08,2.2726]
[1734339375154,2.14,220.16,220.06,3.7928]
[1734339375356,2.14,220.16,220.06,1.52]
[1734339375557,2.14,220.16,220.0,305.55061477]
[1734339375757,9.80948071,220.11,220.0,307.82401477]
[1734339375959,2.14,220.1,220.0,305.55061477]
[1734339376659,2.14,220.1,220.03,2.2731]
[1734339377263,2.14,220.09,220.01,12.95508071]
[1734339377461,2.14,220.1,220.02,1.5725]
[1734339377662,2.14,220.11,220.02,1.5725]
[1734339378567,4.4124,220.11,220.05,2.273]
[1734339379259,4.4124,220.11,220.02,1.5725]
[1734339379471,2.14,220.11,220.04,2.273]
[1734339379761,2.2722,220.12,220.04,2.273]
[1734339379762,2.14,220.12,220.04,9.80948071]
[1734339380060,2.14,220.12,220.07,2.2727]
[1734339380259,2.14,220.12,220.04,9.80948071]
[1734339380663,2.14,220.12,220.07,2.2727]
[1734339381266,2.2721,220.13,220.07,2.2727]
[1734339381468,4.4121,220.13,220.07,2.2727]
[1734339383472,2.14,220.13,220.07,2.2727]
[1734339383668,2.2723,220.12,220.07,2.2727]
[1734339383865,2.14,220.13,220.07,2.2727]
[1734339384964,4.4121,220.13,220.08,2.2726]
[1734339385671,2.14,220.13,220.02,9.80948071]
[1734339385871,2.14,220.13,220.09,2.2725]
[1734339386471,2.2716,220.19,220.13,2.2721]
[1734339386869,7.66551861,220.2,220.13,2.2721]
[1734339387670,2.2716,220.18,220.13,2.2721]
[1734339387972,2.2716,220.18,220.1,1.4745]
[1734339387973,2.2718,220.17,220.1,1.4745]
[1734339388176,9.80948071,220.19,220.1,1.4745]
[1734339388770,9.80948071,220.19,220.11,2.2723]
[1734339389475,2.2719,220.16,220.11,2.2723]
[1734339389867,9.80948071,220.19,220.11,2.2723]
[1734339390072,2.272,220.15,220.11,2.2723]
[1734339390872,9.80948071,220.19,220.1,1.4745]
[1734339390873,2.14,220.18,220.1,1.4745]
[1734339391276,4.4117,220.18,220.13,2.272]
[1734339391473,4.4117,220.18,220.1,1.4745]
[1734339392280,2.2715,220.19,220.14,2.272]
[1734339392786,2.14,220.21,220.1,1.4745]
[1734339393080,9.80948071,220.22,220.1,1.4745]
[1734339393277,2.2714,220.2,220.1,1.4745]
[1734339394481,17.39023827,220.22,220.1,1.4745]
[1734339395476,17.39023827,220.22,220.11,2.2723]
[1734339395477,2.2718,220.16,220.11,2.2723]
[1734339396485,2.2718,220.16,220.12,2.2722]
[1734339397485,4.4117,220.17,220.12,2.2722]
[1734339397989,2.14,220.17,220.14,2.272]
[1734339398381,2.14,220.2,220.14,2.272]
[1734339398881,2.2715,220.19,220.14,2.272]
[1734339399683,2.2715,220.19,220.15,2.2719]
[1734339400183,2.2713,220.21,220.11,9.80948071]
[1734339400580,2.2713,220.21,220.12,2.14]
[1734339401285,2.271,220.24,220.14,9.80948071]
[1734339401482,246.0544065,220.32,220.14,9.80948071]
[1734339401483,0.5358,220.32,220.14,9.80948071]
[1734339401681,0.5358,220.32,220.17,9.80948071]
[1734339401682,9.80948071,220.3,220.17,9.80948071]
[1734339401984,0.66541241,220.29,220.18,1.5679]
[1734339402180,245.5186065,220.34,220.18,1.5679]
[1734339402380,9.80948071,220.32,220.19,1.5005]
[1734339402585,0.66545111,220.31,220.19,1.5005]
[1734339402880,5.43366777,220.28,220.19,1.5005]
[1734339403080,5.43366777,220.28,220.22,2.2711]
[1734339403081,7.70426777,220.28,220.22,2.2711]
[1734339403389,5.43366777,220.28,220.19,1.5005]
[1734339403591,2.14,220.29,220.19,1.5005]
[1734339403786,4.4106,220.29,220.23,2.271]
[1734339404085,2.14,220.29,220.19,1.5005]
[1734339404589,2.2708,220.26,220.2,2.2713]
[1734339405096,2.14,220.29,220.2,2.2713]
[1734339405292,2.2709,220.26,220.19,1.5005]
[1734339405490,2.14,220.33,220.19,1.5005]
[1734339405696,0.66560909,220.32,220.21,9.80948071]
[1734339405887,0.66560909,220.32,220.21,2.14]
[1734339406090,5.36129169,220.31,220.24,2.271]
[1734339406291,2.80560909,220.3,220.21,2.14]
[1734339406487,2.14,220.31,220.21,2.14]
[1734339406694,4.4104,220.31,220.22,9.80948071]
[1734339407096,4.4104,220.31,220.25,2.2708]
[1734339407291,2.2704,220.3,220.25,2.2708]
[1734339408094,2.14,220.31,220.21,11.94948071]
[1734339408295,0.66566899,220.3,220.23,2.271]
[1734339408690,2.2706,220.28,220.23,2.271]
[1734339408890,2.14,220.31,220.23,2.271]
[1734339409096,0.66567249,220.3,220.22,2.2712]
[1734339409995,6.27581694,220.29,220.22,8.54701694]
[1734339410196,2.2708,220.26,220.22,8.54701694]
[1734339410400,2.14,220.31,220.2,6.27581694]
[1734339410401,6.27581694,220.27,220.2,6.27581694]
[1734339410700,0.66557182,220.26,220.19,6.27581694]
[1734339411092,0.66557182,220.26,220.2,2.2713]
[1734339411093,2.2709,220.25,220.2,2.2713]
[1734339411994,2.14,220.26,219.95,5.40145626]
[1734339412199,2.2712,220.22,220.18,2.2716]
[1734339413099,6.27581694,220.25,220.18,2.2716]
[1734339413295,2.2711,220.23,220.18,2.2716]
[1734339413601,6.27581694,220.25,220.18,2.2716]
[1734339413992,2.271,220.24,220.19,6.27581694]
[1734339414194,6.27581694,220.3,220.21,6.27581694]
[1734339414396,6.27581694,220.26,220.18,2.14]
[1734339414695,6.27581694,220.26,220.19,8.54721694]
[1734339415099,8.41581694,220.26,220.19,8.54721694]
[1734339415302,2.2711,220.24,220.19,8.54721694]
[1734339415693,2.14,220.26,220.21,8.54701694]
[1734339415896,2.14,220.26,220.21,6.27581694]
[1734339416199,2.14,220.26,220.18,9.80616374]
[1734339416400,4.4108,220.26,220.2,2.2714]
[1734339416599,4.4108,220.26,220.18,9.80616374]
[1734339416797,2.2708,220.26,220.18,11.94616374]
[1734339417396,2.2708,220.26,220.22,2.2711]
[1734339417597,2.2707,220.27,220.22,2.2711]
[1734339418504,2.2707,220.27,220.23,2.2711]
[1734339419496,2.2707,220.27,220.18,11.94616374]
[1734339419497,2.2707,220.27,220.22,2.2712]
[1734339420095,2.2707,220.27,220.18,11.94616374]
[1734339420400,2.2707,220.27,220.23,2.2711]
[1734339421604,2.14,220.29,220.17,1.5659]
[1734339421805,0.66545209,220.28,220.17,1.5659]
[1734339422407,2.2711,220.23,220.17,1.5659]
[1734339423413,2.2711,220.23,220.19,2.2715]
[1734339424012,2.271,220.24,220.19,2.2715]
[1734339425214,2.271,220.24,220.2,2.2714]
[1734339425612,2.14,220.29,220.2,2.2714]
[1734339425815,2.2709,220.25,220.2,2.2714]
[1734339426215,2.2709,220.25,220.21,2.2713]
[1734339427316,2.271,220.24,220.19,2.2714]
[1734339427714,2.14,220.27,220.17,1.5659]
[1734339427913,0.66562943,220.26,220.16,1.554]
[1734339428513,0.66562943,220.26,220.14,2.272]
[1734339428719,0.66562943,220.26,220.12,9.80616374]
[1734339429113,0.66562943,220.26,220.15,2.2718]
[1734339429114,2.2715,220.2,220.15,2.2718]
[1734339430113,2.2715,220.19,220.15,2.2718]
[1734339432319,2.2716,220.18,220.13,2.2721]
[1734339432522,2.14,220.21,220.13,2.2721]
[1734339433020,2.2716,220.19,220.13,2.2721]
[1734339433216,2.14,220.21,220.13,2.2721]
[1734339433520,2.14,220.21,220.1,2.2724]
[1734339433521,0.66556899,220.2,220.1,2.2724]
[1734339434116,2.93706899,220.2,220.12,9.80616374]
[1734339434318,2.14,220.21,220.12,9.80616374]
[1734339435218,2.2716,220.19,220.15,2.2719]
[1734339435418,2.2716,220.19,220.12,9.80616374]
[1734339436010,2.2716,220.19,220.15,6.27979364]
[1734339437522,246.0543065,220.31,220.15,6.27979364]
[1734339437713,246.0543065,220.31,220.09,1.5811]
[1734339437714,6.27979364,220.26,220.2,6.27979364]
[1734339437920,2.80596673,220.25,220.2,6.27979364]
[1734339438120,0.66596673,220.24,220.2,6.27979364]
[1734339438319,0.66596673,220.24,220.18,6.27979364]
[1734339438519,2.2714,220.21,220.18,6.27979364]
[1734339438822,6.27979364,220.24,220.18,6.27979364]
[1734339439125,0.66619528,220.23,220.18,6.27979364]
[1734339439423,6.27979364,220.24,220.18,6.27979364]
[1734339439424,2.2715,220.2,220.18,6.27979364]
[1734339439821,2.2715,220.19,220.14,2.14]
[1734339440026,2.2715,220.19,220.17,6.27979364]
[1734339442718,0.5357,220.31,220.17,6.27979364]
[1734339442919,6.27979364,220.27,220.21,6.27979364]
[1734339443325,2.271,220.25,220.21,6.27979364]
[1734339444523,6.27979364,220.27,220.21,6.27979364]
[1734339444722,0.66586783,220.26,220.21,6.27979364]
[1734339445218,2.2711,220.24,220.21,6.27979364]
[1734339445519,6.27979364,220.27,220.21,6.27979364]
[1734339445926,2.2712,220.23,220.21,6.27979364]
[1734339447832,6.27979364,220.28,220.21,6.27979364]
[1734339448030,0.66548739,220.27,220.21,6.27979364]
[1734339448434,2.271,220.25,220.21,8.55109364]
[1734339448825,66.0,220.52,220.23,6.27979364]
[1734339449028,2.2705,220.29,220.25,6.27979364]
[1734339449230,2.14,220.31,220.27,6.27979364]
[1734339449631,2.2705,220.3,220.27,6.27979364]
[1734339449937,2.14,220.31,220.2,2.14]
[1734339450133,2.14,220.31,220.26,6.27979364]
[1734339450537,2.2705,220.29,220.26,6.27979364]
[1734339453139,2.2705,220.29,220.25,2.2708]
[1734339453340,2.2705,220.29,220.25,8.55059364]
[1734339453943,13.9660494,220.32,220.22,2.2712]
[1734339454133,13.9660494,220.32,220.24,6.27979364]
[1734339454134,0.66537537,220.31,220.24,6.27979364]
[1734339454341,6.27979364,220.3,220.24,6.27979364]
[1734339455038,2.2708,220.26,220.22,2.2712]
[1734339455232,2.14,220.27,220.17,1.5218]
[1734339455432,2.271,220.24,220.2,6.27979364]
[1734339456439,2.271,220.24,220.2,8.55119364]
[1734339456643,2.271,220.24,220.22,6.27979364]
[1734339456841,2.2711,220.23,220.17,1.5218]
[1734339457044,2.2711,220.23,220.19,6.27979364]
[1734339459744,2.2711,220.23,220.19,8.55129364]
[1734339460249,2.2711,220.23,220.21,6.27979364]
[1734339460852,2.2709,220.25,220.21,6.27979364]
[1734339461048,2.14,220.27,220.23,6.27979364]
[1734339461241,2.14,220.28,220.23,6.27979364]
[1734339461653,2.2708,220.26,220.23,6.27979364]
[1734339461849,2.14,220.28,220.23,6.27979364]
[1734339462043,0.66530592,220.27,220.23,6.27979364]
[1734339463047,2.2709,220.25,220.23,6.27979364]
[1734339463443,2.2709,220.25,220.22,2.2712]
[1734339463749,2.2709,220.25,220.22,8.55099364]
[1734339464351,2.2708,220.27,220.23,2.2711]
[1734339464553,2.2708,220.27,220.24,6.27979364]
[1734339465047,2.2706,220.28,220.26,6.27979364]
[1734339465642,2.2705,220.29,220.26,6.27979364]
[1734339466451,2.2705,220.29,220.26,8.55059364]
[1734339467049,2.2702,220.32,220.29,2.2705]
[1734339467346,2.14,220.37,220.3,6.27979364]
[1734339467546,8.41979364,220.39,220.33,6.27979364]
[1734339467749,0.66486122,220.38,220.33,6.27979364]
[1734339467949,8.41979364,220.39,220.33,6.27979364]
[1734339468152,2.2697,220.37,220.35,6.27979364]
[1734339468349,2.14,220.4,220.35,6.27979364]
[1734339468552,13.77834894,220.4,220.33,6.27979364]
[1734339468745,13.77834894,220.4,220.35,6.27979364]
[1734339468746,2.2697,220.37,220.35,6.27979364]
[1734339470452,2.2697,220.37,220.33,2.27]
[1734339470653,2.2697,220.37,220.34,6.27979364]
[1734339471253,6.27979364,220.4,220.34,6.27979364]
[1734339471449,2.2696,220.38,220.34,8.54979364]
[1734339473657,6.27979364,220.4,220.34,8.54979364]
[1734339473858,2.2697,220.37,220.34,8.54979364]
[1734339474257,19.91979364,220.4,220.18,4.5432]
[1734339474456,6.27979364,220.2,220.1,1.5113]
[1734339474756,2.14,220.23,220.15,6.27979364]
[1734339474959,6.27979364,220.24,220.15,6.27979364]
[1734339476559,2.2713,220.21,220.15,6.27979364]
[1734339476754,2.2713,220.21,220.16,2.14]
[1734339476955,2.2713,220.21,220.17,6.27979364]
[1734339480358,2.2712,220.23,220.17,6.27979364]
[1734339480560,6.27979364,220.25,220.17,6.27979364]
[1734339481463,2.2712,220.22,220.17,6.27979364]
[1734339482269,2.2712,220.22,220.16,2.14]
[1734339482564,2.2712,220.22,220.17,6.27979364]
[1734339482767,2.2712,220.22,220.16,2.14]
[1734339482968,2.2712,220.22,220.17,6.27979364]
[1734339483765,2.2713,220.21,220.17,6.27979364]
[1734339483963,6.27979364,220.21,220.1,1.5113]
[1734339484373,2.2719,220.15,220.13,6.27979364]
[1734339488475,2.2718,220.16,220.13,6.27979364]
[1734339491470,2.2721,220.13,219.87,20.4746]
[1734339491666,6.27979364,220.17,220.1,6.27979364]
[1734339492473,2.2722,220.13,220.07,2.2727]
[1734339492672,2.2722,220.13,220.1,6.27979364]
[1734339493778,2.272,220.15,220.1,6.27979364]
[1734339495778,2.272,220.15,220.1,8.55219364]
[1734339495969,2.272,220.15,220.1,6.27979364]
[1734339497475,2.272,220.15,220.11,2.2723]
[1734339497679,2.272,220.15,220.12,6.27979364]
[1734339497980,2.2718,220.17,220.12,8.55199364]
[1734339498371,2.2718,220.17,220.14,6.27979364]
[1734339498672,2.2716,220.18,220.14,6.27979364]
[1734339499077,6.27979364,220.21,220.16,2.2718]
[1734339499280,8.55119364,220.21,220.16,2.2718]
[1734339499674,2.2714,220.2,220.17,2.2717]
[1734339500371,2.18,220.26,220.19,2.2715]
[1734339500571,5.41298815,220.29,220.19,2.2715]
[1734339500572,0.6657659,220.25,220.19,2.2715]
[1734339500777,0.6657659,220.24,220.19,2.2715]
[1734339500977,2.2712,220.23,220.19,2.2715]
[1734339501379,7.59298815,220.29,220.18,2.2716]
[1734339501380,6.27979364,220.24,220.18,2.2716]
[1734339502577,2.2712,220.22,220.18,2.2716]
[1734339504585,6.27979364,220.24,220.13,1.5679]
[1734339504886,0.66614122,220.23,220.15,8.45979364]
[1734339505585,2.2715,220.2,220.15,10.73159364]
[1734339508781,2.2715,220.2,220.15,8.55159364]
[1734339509889,2.2715,220.2,220.16,2.2718]
[1734339511086,2.2715,220.2,220.17,6.27979364]
[1734339511288,2.2715,220.2,220.16,2.2718]
[1734339512579,8.45979364,220.24,220.16,2.2718]
[1734339512784,2.2713,220.21,220.16,2.2718]
[1734339513388,2.2713,220.21,220.15,6.27979364]
[1734339513590,2.2713,220.21,220.17,2.2717]
[1734339513782,2.2713,220.21,220.17,8.55149364]
[1734339514188,2.18,220.24,220.19,6.27979364]
[1734339514493,0.66564133,220.23,220.19,6.27979364]
[1734339514791,2.271,220.24,220.19,6.27979364]
[1734339514991,2.271,220.24,220.19,8.55129364]
[1734339516490,2.271,220.24,220.13,1.5679]
[1734339516491,2.2714,220.21,220.17,2.12]
[1734339516790,2.2714,220.21,220.17,6.27979364]
[1734339516993,2.2714,220.21,220.17,8.55149364]
[1734339521394,2.2714,220.2,220.17,8.55149364]
[1734339522591,2.2713,220.21,220.17,8.55149364]
[1734339529802,2.2713,220.21,220.17,2.2717]
[1734339532294,5.41298815,220.29,220.19,6.27979364]
[1734339532505,11.69278179,220.29,220.21,8.55099364]
[1734339532902,2.271,220.24,220.21,6.27979364]
[1734339533505,6.27979364,220.28,220.16,2.12]
[1734339533703,2.2711,220.24,220.2,6.27979364]
[1734339535099,6.27979364,220.28,220.2,6.27979364]
[1734339535400,2.2711,220.23,220.19,2.2714]
[1734339539499,2.2711,220.23,220.18,6.27979364]
[1734339539500,5.41298815,220.29,220.18,6.27979364]
[1734339539708,6.27979364,220.25,220.2,2.2713]
[1734339541104,6.27979364,220.25,220.13,1.5679]
[1734339541305,2.2713,220.21,220.17,6.27979364]
[1734339541503,2.2713,220.21,220.17,8.37979364]
[1734339541806,2.2713,220.21,220.18,5.06860308]
[1734339542008,2.2713,220.21,220.17,8.37979364]
[1734339542305,2.2712,220.22,220.18,7.34027784]
[1734339542503,2.2712,220.22,220.18,2.2716]
[1734339543102,6.27979364,220.2,220.13,1.5679]
[1734339543297,6.27979364,220.18,220.14,5.07028613]
[1734339543500,6.27979364,220.18,220.12,1.5585]
[1734339543806,2.272,220.15,220.13,5.07214803]
[1734339543996,2.272,220.15,220.12,1.5585]
[1734339544201,2.2718,220.17,220.12,1.5585]
[1734339544400,6.27979364,220.18,220.12,1.5585]
[1734339546305,2.1,220.2,220.06,1.4676]
[1734339546306,6.27979364,220.14,220.06,1.4676]
[1734339546501,6.27979364,220.14,220.07,6.27979364]
[1734339546908,6.27979364,220.14,220.07,8.55249364]
[1734339546909,2.2723,220.12,220.07,8.55249364]
[1734339549403,2.2724,220.11,220.07,8.55249364]
[1734339549605,2.2724,220.11,220.07,6.27979364]
[1734339550506,6.27979364,220.14,220.07,6.27979364]
[1734339550705,2.2725,220.1,220.07,6.27979364]
[1734339550906,6.27979364,220.14,220.07,6.27979364]
[1734339552111,2.2722,220.13,220.07,8.55249364]
[1734339552605,13.96332026,220.15,220.09,6.27979364]
[1734339552908,13.96332026,220.15,220.1,2.2724]
[1734339553105,7.68352662,220.15,220.09,6.27979364]
[1734339553902,5.58352662,220.15,220.09,6.27979364]
[1734339554511,7.85552662,220.15,220.11,2.2723]
[1734339555507,2.2722,220.13,220.09,2.2725]
[1734339557011,2.2722,220.13,220.08,6.27979364]
[1734339557313,11.86332026,220.15,220.08,8.55239364]
[1734339557504,5.58352662,220.15,220.08,6.27979364]
[1734339557705,5.58352662,220.15,220.1,6.27979364]
[1734339558105,2.2721,220.14,220.08,2.2726]
[1734339558312,2.2721,220.14,220.06,3.5676]
[1734339558313,2.2721,220.14,220.09,6.27979364]
[1734339558914,2.2721,220.14,220.06,3.5676]
[1734339559215,2.2721,220.14,220.1,2.2724]
[1734339559915,2.2719,220.15,220.11,2.2723]
[1734339560111,6.27979364,220.16,220.09,6.27979364]
[1734339561017,6.27979364,220.16,220.06,3.5676]
[1734339561213,2.2723,220.12,220.08,2.2726]
[1734339562419,2.2723,220.12,220.07,2.2728]
[1734339562809,2.2724,220.11,220.07,2.2728]
[1734339563017,2.2724,220.11,220.07,8.55259364]
[1734339564119,2.2724,220.11,220.07,2.2728]
[1734339564315,2.2724,220.11,220.07,8.55259364]
[1734339565722,2.2725,220.1,220.07,6.27979364]
[1734339566519,2.2724,220.11,220.07,6.27979364]
[1734339568014,2.2724,220.11,220.07,8.55249364]
[1734339568722,2.2723,220.12,220.08,2.2727]
[1734339570322,2.272,220.15,220.1,2.2724]
[1734339570524,2.272,220.15,220.09,6.27979364]
[1734339570718,2.272,220.15,220.06,1.4676]
[1734339571020,2.272,220.15,220.1,2.2724]
[1734339572233,2.272,220.15,220.11,2.2723]
[1734339572723,2.272,220.15,220.12,2.2722]
[1734339572926,5.38822445,220.16,220.12,2.2722]
[1734339573127,7.66012445,220.16,220.12,2.2722]
[1734339573825,7.66012445,220.16,220.1,6.27979364]
[1734339574932,5.38822445,220.16,220.1,6.27979364]
[1734339575130,2.272,220.15,220.12,2.2723]
[1734339575328,5.38822445,220.16,220.06,1.4676]
[1734339575533,2.2724,220.11,220.06,10.02029364]
[1734339576130,8.37979364,220.13,220.06,10.02029364]
[1734339576330,2.2724,220.11,220.06,10.02029364]
[1734339576530,8.37979364,220.13,220.06,10.02029364]
[1734339576730,8.37979364,220.13,220.06,3.7405]
[1734339576926,6.27979364,220.11,220.02,1.5575]
[1734339577236,6.27979364,220.09,220.02,7.83729364]
[1734339577436,2.273,220.06,220.02,7.83729364]
[1734339579739,2.273,220.06,220.02,1.5575]
[1734339579936,2.273,220.06,220.02,7.83729364]
[1734339580137,2.273,220.06,220.02,1.5575]
[1734339580334,2.273,220.06,220.02,7.83729364]
[1734339581137,2.273,220.06,220.02,10.11059364]
[1734339581739,2.273,220.06,220.02,3.8308]
[1734339581941,2.273,220.06,220.02,10.11059364]
[1734339588438,2.2729,220.07,220.03,2.2733]
[1734339590450,2.2729,220.07,220.03,8.55309364]
[1734339592339,8.55249364,220.09,220.05,2.2731]
[1734339592543,2.1,220.11,220.05,6.27979364]
[1734339592743,2.1,220.11,220.02,1.5575]
[1734339592744,6.27979364,220.14,220.07,6.27979364]
[1734339593250,6.27979364,220.14,220.08,5.118477]
[1734339593550,2.2725,220.12,220.08,2.2727]
[1734339593848,2.2725,220.12,220.09,5.11854085]
[1734339594049,2.2725,220.12,220.08,2.2727]
[1734339594248,2.2725,220.12,220.09,5.11842161]
[1734339594449,2.2725,220.12,220.08,2.2727]
[1734339594750,2.2725,220.12,220.09,5.11828518]
[1734339594947,2.2725,220.12,220.1,5.11828518]
[1734339595146,2.2725,220.12,220.09,2.2727]
[1734339595346,2.2725,220.12,220.1,5.11841101]
[1734339595546,2.2725,220.12,220.09,2.2727]
[1734339595748,2.2725,220.12,220.1,5.11835151]
[1734339595948,2.2725,220.12,220.09,2.2727]
[1734339596245,8.55209364,220.14,220.1,5.11834915]
[1734339596448,6.27979364,220.14,220.09,2.2727]
[1734339596749,6.27979364,220.14,220.1,5.11828761]
[1734339596949,6.27979364,220.14,220.09,2.2727]
[1734339597143,2.2723,220.13,220.1,5.11828761]
[1734339597344,2.2723,220.13,220.09,2.2727]
[1734339597543,2.2723,220.13,220.1,5.11825109]
[1734339597748,2.2723,220.13,220.09,2.2727]
[1734339599446,2.2723,220.13,220.1,5.11856866]
[1734339599651,2.2723,220.13,220.09,8.55249364]
[1734339599852,2.2723,220.13,220.1,5.11856523]
[1734339600157,2.2723,220.13,220.1,2.2726]
[1734339600651,5.0795,220.28,220.13,2.2723]
[1734339600860,6.27979364,220.22,220.14,6.27979364]
[1734339601053,2.93708456,220.21,220.15,5.1179916]
[1734339601253,0.66548456,220.2,220.15,5.1179916]
[1734339601449,6.27979364,220.22,220.16,7.3899916]
[1734339601653,2.1,220.24,220.13,6.27979364]
[1734339601654,6.27979364,220.2,220.13,6.27979364]
[1734339601954,6.27979364,220.18,220.17,5.11732375]
[1734339602153,6.27979364,220.18,220.12,1.5299]
[1734339602556,2.2722,220.15,220.12,1.5299]
[1734339603355,2.2719,220.18,220.13,5.11669065]
[1734339603555,2.2719,220.18,220.14,5.11669065]
[1734339603751,8.37979364,220.19,220.12,7.80969364]
[1734339604160,8.37979364,220.19,220.13,5.11527794]
[1734339604351,8.37979364,220.19,220.12,7.80969364]